Workbook

Sheet 1
N2: =M34 -> -0.006300620455
V3: Оценка приемлемости прогноза:
B4: Rok | C4: Yt | D4: Ft | E4: St | F4: Yt* | G4: yt-yt* | H4: |yt-yt*| | I4: (yt-yt*)2 | M4: α | N4: β | P4: MAE | Q4: MSE | R4: RMSE | T4: T16 | U4: T17 | V4: T18
B5: 98 | C5: =данные!J3 -> 0.8962028557 | D5: =C5 -> 0.8962028557 | E5: =C6-C5 -> -0.02077074902 | K5: 1 | M5: 0.5 | N5: 0.4557286256 | P5: =AVERAGE(H7:H34) -> 0.02634592363 | Q5: =AVERAGE(I7:I34) -> 0.001165982599 | R5: =SQRT(Q5) -> 0.03414648736 | T5: =R5/F35 -> 0.03830878079 | U5: =R5/F36+T5 -> 0.0765110896 | V5: =R5/F37+U5 -> 0.1146075166
B6: 99 | C6: =данные!J4 -> 0.8754321067 | D6: =$M$5*C6+(1-$M$5)*(D5+E5) -> 0.8754321067 | E6: =$N$5*(D6-D5)+(1-$N$5)*E5 -> -0.02077074902 | F6: =D5+E5 -> 0.8754321067 | G6: =C6-F6 -> 0 | H6: =ABS(C6-F6) -> 0 | I6: =(C6-F6)^2 -> 0 | K6: 2 | N6: 0.2286571224
B7: 00 | C7: =данные!J5 -> 0.9021020131 | D7: 0.8783816854 | E7: -0.00996071667 | F7: =D6+E6 -> 0.8546613577 | G7: =C7-F7 -> 0.04744065542 | H7: 0.04744065542 | I7: 0.002250615787 | K7: 3
B8: 01 | C8: =данные!J6 -> 0.9204330196 | D8: 0.8944269942 | E8: 0.001890973561 | F8: 0.8684209687 | G8: 0.05201205088 | H8: 0.05201205088 | I8: 0.002705253436 | K8: 4 | N8: 0.61
B9: 02 | C9: =данные!J7 -> 0.921239189 | D9: 0.9087785784 | E9: 0.00756963052 | F9: 0.8963179677 | G9: 0.02492122127 | H9: 0.02492122127 | I9: 0.0006210672694 | K9: 5
B10: 03 | C10: =данные!J8 -> 0.8843136556 | D10: 0.9003309322 | E10: 0.0002700990553 | F10: 0.9163482089 | G10: -0.03203455326 | H10: 0.03203455326 | I10: 0.001026212602 | K10: 6
B11: 04 | C11: =данные!J9 -> 0.8949041433 | D11: 0.8977525873 | E11: -0.001028018421 | F11: 0.9006010313 | G11: -0.005696888032 | H11: 0.005696888032 | I11: 3.245453325e-05 | K11: 7
B12: 05 | C12: =данные!J10 -> 0.8722707794 | D12: 0.8844976742 | E12: -0.006600164345 | F12: 0.8967245689 | G12: -0.02445378943 | H12: 0.02445378943 | I12: 0.0005979878173 | K12: 8
B13: 06 | C13: =данные!J11 -> 0.8897602785 | D13: 0.8838288941 | E13: -0.003897062712 | F13: 0.8778975098 | G13: 0.01186276868 | H13: 0.01186276868 | I13: 0.0001407252807 | K13: 9
B14: 07 | C14: =данные!J12 -> 0.8913399297 | D14: 0.8856358805 | E14: -0.001297564251 | F14: 0.8799318314 | G14: 0.01140809822 | H14: 0.01140809822 | I14: 0.000130144705 | K14: 10
B15: 08 | C15: =данные!J13 -> 0.8909470219 | D15: 0.8876426691 | E15: 0.0002083239145 | F15: 0.8843383163 | G15: 0.006608705623 | H15: 0.006608705623 | I15: 4.367499002e-05 | K15: 11
B16: 09 | C16: =данные!J14 -> 0.92742333 | D16: 0.9076371615 | E16: 0.009225447287 | F16: 0.887850993 | G16: 0.03957233698 | H16: 0.03957233698 | I16: 0.001565969854 | K16: 12
B17: 10 | C17: =данные!J15 -> 0.8706337223 | D17: 0.8937481655 | E17: -0.001308466178 | F17: 0.9168626088 | G17: -0.04622888654 | H17: 0.04622888654 | I17: 0.002137109951 | K17: 13
B18: 11 | C18: =данные!J16 -> 0.9238555622 | D18: 0.9081476308 | E18: 0.005850087828 | F18: 0.8924396993 | G18: 0.03141586288 | H18: 0.03141586288 | I18: 0.0009869564402 | K18: 14
B19: 12 | C19: =данные!J17 -> 0.8462235101 | D19: 0.8801106143 | E19: -0.00959323563 | F19: 0.9139977186 | G19: -0.06777420855 | H19: 0.06777420855 | I19: 0.004593343345 | K19: 15
B20: 13 | C20: =данные!J18 -> 0.8684481236 | D20: 0.8694827512 | E20: -0.01006474502 | F20: 0.8705173787 | G20: -0.002069255109 | H20: 0.002069255109 | I20: 4.281816707e-06 | K20: 16
B21: 14 | C21: =данные!J19 -> 0.8650751709 | D21: 0.8622465885 | E21: -0.008775679061 | F21: 0.8594180061 | G21: 0.005657164772 | H21: 0.005657164772 | I21: 3.200351326e-05 | K21: 17
B22: 15 | C22: =данные!J20 -> 0.8599799959 | D22: 0.8567254527 | E22: -0.007292490539 | F22: 0.8534709095 | G22: 0.006509086496 | H22: 0.006509086496 | I22: 4.236820701e-05 | K22: 18
B23: 16 | C23: =данные!J21 -> 0.8539874538 | D23: 0.851710208 | E23: -0.006254684426 | F23: 0.8494329622 | G23: 0.004554491664 | H23: 0.004554491664 | I23: 2.074339432e-05 | K23: 19
B24: 17 | C24: =данные!J22 -> 0.9289891034 | D24: 0.8872223135 | E24: 0.01277963733 | F24: 0.8454555236 | G24: 0.08353357979 | H24: 0.08353357979 | I24: 0.006977858953 | K24: 20
B25: 18 | C25: =данные!J23 -> 0.8481257636 | D25: 0.8740638572 | E25: 0.0009589055935 | F25: 0.9000019508 | G25: -0.05187618715 | H25: 0.05187618715 | I25: 0.002691138794 | K25: 21
B26: 19 | C26: =данные!J24 -> 0.8489292682 | D26: 0.8619760155 | E26: -0.004986870622 | F26: 0.8750227628 | G26: -0.0260934946 | H26: 0.0260934946 | I26: 0.0006808704602 | K26: 22
B27: 20 | C27: =данные!J25 -> 0.8561675323 | D27: 0.8565783386 | E27: -0.005174086807 | F27: 0.8569891449 | G27: -0.0008216125773 | H27: 0.0008216125773 | I27: 6.750472271e-07 | K27: 23
B28: 21 | C28: =данные!J26 -> 0.8444804498 | D28: =$M$5*C28+(1-$M$5)*(D15+E15) -> 0.8661657214 | E28: =$N$5*(D28-D15)+(1-$N$5)*E15 -> -0.009674275123 | F28: =D15+E15 -> 0.887850993 | G28: -0.04337054326 | H28: 0.04337054326 | I28: 0.001881004023 | K28: 24
B29: 22 | C29: =данные!J27 -> 0.90083572 | D29: 0.8786635831 | E29: 0.0004302023307 | F29: 0.8564914463 | G29: 0.0443442737 | H29: 0.0443442737 | I29: 0.00196641461 | K29: 25
B30: 23 | C30: =данные!J28 -> 0.8575206237 | D30: 0.8683072046 | E30: -0.004485551351 | F30: 0.8790937854 | G30: -0.02157316177 | H30: 0.02157316177 | I30: 0.0004654013086 | K30: 26 | M30: =AVERAGE(H7:H34)*10+0.04 -> 0.3034592363
B31: 24 | C31: =данные!J29 -> 0.8948215762 | D31: 0.8793216147 | E31: 0.002578224789 | F31: 0.8638216532 | G31: 0.03099992295 | H31: 0.03099992295 | I31: 0.0009609952228 | K31: 27
B32: 25 | C32: =данные!J30 -> 0.8835205187 | D32: 0.8827101791 | E32: 0.002947519742 | F32: 0.8818998395 | G32: 0.001620679201 | H32: 0.001620679201 | I32: 2.626601074e-06 | K32: 28
B33: 26 | C33: =данные!J31 -> 0.8912573196 | D33: 0.8884575092 | E33: 0.004223473482 | F33: 0.8856576988 | G33: 0.005599620778 | H33: 0.005599620778 | I33: 3.135575286e-05 | K33: 29
B34: 27 | C34: =данные!J32 -> 0.8850482205 | D34: 0.8888646016 | E34: 0.002484239381 | F34: 0.8926809827 | G34: -0.007632762148 | H34: 0.007632762148 | I34: 5.8259058e-05 | K34: 30 | M34: =C35-J35 -> -0.006300620455
B35: 28 | C35: =данные!J33 -> 0.8850482205 | F35: =$D$34+(B35-$B$34)*$E$34 -> 0.891348841 | J35: =F35 -> 0.891348841 | K35: 31
B36: 29 | F36: =$D$34+(B36-$B$34)*$E$34 -> 0.8938330804 | J36: =F36 -> 0.8938330804
B37: 30 | F37: =$D$34+(B37-$B$34)*$E$34 -> 0.8963173198 | J37: 0.8963173198

Sheet 2
N2: =M34 -> 0.01060777477
V3: Оценка приемлемости прогноза:
B4: Rok | C4: Yt | D4: Ft | E4: St | F4: Yt* | G4: yt-yt* | H4: |yt-yt*| | I4: (yt-yt*)2 | M4: α | N4: β | P4: MAE | Q4: MSE | R4: RMSE | T4: T16 | U4: T17 | V4: T18
B5: 98 | C5: =данные!L3 -> 0.9321685953 | D5: =C5 -> 0.9321685953 | E5: =C6-C5 -> 0.03678528341 | K5: 1 | M5: 0.5 | N5: 0.3918952997 | P5: =AVERAGE(H7:H34) -> 0.029520349 | Q5: =AVERAGE(I7:I34) -> 0.00148825431 | R5: =SQRT(Q5) -> 0.03857789924 | T5: =R5/F35 -> 0.04310311527 | U5: =R5/F36+T5 -> 0.08659609021 | V5: =R5/F37+U5 -> 0.1304860416
B6: 99 | C6: =данные!L4 -> 0.9689538787 | D6: =$M$5*C6+(1-$M$5)*(D5+E5) -> 0.9689538787 | E6: =$N$5*(D6-D5)+(1-$N$5)*E5 -> 0.03678528341 | F6: =D5+E5 -> 0.9689538787 | G6: =C6-F6 -> 0 | H6: =ABS(C6-F6) -> 0 | I6: =(C6-F6)^2 -> 0 | K6: 2 | N6: 0.2286571224
B7: 00 | C7: =данные!L5 -> 0.920645369 | D7: 0.9631922655 | E7: 0.02011135463 | F7: =D6+E6 -> 1.005739162 | G7: =C7-F7 -> -0.08509379312 | H7: 0.08509379312 | I7: 0.007240953627 | K7: 3
B8: 01 | C8: =данные!L6 -> 0.925667984 | D8: 0.9544858021 | E8: 0.008817787171 | F8: 0.9833036202 | G8: -0.05763563616 | H8: 0.05763563616 | I8: 0.003321866556 | K8: 4 | N8: 0.61
B9: 02 | C9: =данные!L7 -> 0.9456216802 | D9: 0.9544626348 | E9: 0.005353058653 | F9: 0.9633035893 | G9: -0.01768190902 | H9: 0.01768190902 | I9: 0.0003126499066 | K9: 5
B10: 03 | C10: =данные!L8 -> 0.8871006932 | D10: 0.9234581933 | E10: -0.00889527475 | F10: 0.9598156934 | G10: -0.07271500021 | H10: 0.07271500021 | I10: 0.005287471256 | K10: 6
B11: 04 | C11: =данные!L9 -> 0.9453139407 | D11: 0.9299384296 | E11: -0.002869684218 | F11: 0.9145629185 | G11: 0.0307510222 | H11: 0.0307510222 | I11: 0.0009456253664 | K11: 7
B12: 05 | C12: =данные!L10 -> 0.9021901701 | D12: 0.9146294577 | E12: -0.007744582594 | F12: 0.9270687454 | G12: -0.02487857537 | H12: 0.02487857537 | I12: 0.0006189435124 | K12: 8
B13: 06 | C13: =данные!L11 -> 0.8961615814 | D13: 0.9015232283 | E13: -0.009845786797 | F13: 0.9068848752 | G13: -0.01072329372 | H13: 0.01072329372 | I13: 0.0001149890282 | K13: 9
B14: 07 | C14: =данные!L12 -> 0.9773042679 | D14: 0.9344908547 | E14: 0.006932588613 | F14: 0.8916774415 | G14: 0.08562682645 | H14: 0.08562682645 | I14: 0.007331953408 | K14: 10
B15: 08 | C15: =данные!L13 -> 0.9230748314 | D15: 0.9322491374 | E15: 0.003337221232 | F15: 0.9414234433 | G15: -0.0183486119 | H15: 0.0183486119 | I15: 0.0003366715587 | K15: 11
B16: 09 | C16: =данные!L14 -> 0.9439593102 | D16: 0.9397728344 | E16: 0.004977881417 | F16: 0.9355863586 | G16: 0.00837295158 | H16: 0.00837295158 | I16: 7.010631816e-05 | K16: 12
B17: 10 | C17: =данные!L15 -> 0.9083521613 | D17: 0.9265514385 | E17: -0.002154329806 | F17: 0.9447507158 | G17: -0.03639855455 | H17: 0.03639855455 | I17: 0.001324854773 | K17: 13
B18: 11 | C18: =данные!L16 -> 0.9425552521 | D18: 0.9334761804 | E18: 0.001403715707 | F18: 0.9243971087 | G18: 0.01815814334 | H18: 0.01815814334 | I18: 0.0003297181694 | K18: 14
B19: 12 | C19: =данные!L17 -> 0.9105043197 | D19: 0.9226921079 | E19: -0.003372621213 | F19: 0.9348798961 | G19: -0.02437557645 | H19: 0.02437557645 | I19: 0.0005941687272 | K19: 15
B20: 13 | C20: =данные!L18 -> 0.9196133178 | D20: 0.9194664022 | E20: -0.003315045701 | F20: 0.9193194867 | G20: 0.0002938310912 | H20: 0.0002938310912 | I20: 8.633671016e-08 | K20: 16
B21: 14 | C21: =данные!L19 -> 0.8925791215 | D21: 0.904365239 | E21: -0.007933969751 | F21: 0.9161513565 | G21: -0.02357223499 | H21: 0.02357223499 | I21: 0.0005556502626 | K21: 17
B22: 15 | C22: =данные!L20 -> 0.9015773124 | D22: 0.8990042909 | E22: -0.006925614689 | F22: 0.8964312693 | G22: 0.00514604315 | H22: 0.00514604315 | I22: 2.64817601e-05 | K22: 18
B23: 16 | C23: =данные!L21 -> 0.9117767686 | D23: 0.9019277224 | E23: -0.003065819776 | F23: 0.8920786762 | G23: 0.0196980924 | H23: 0.0196980924 | I23: 0.0003880148443 | K23: 19
B24: 17 | C24: =данные!L22 -> 0.9387252262 | D24: 0.9187935644 | E24: 0.004745304807 | F24: 0.8988619026 | G24: 0.03986332364 | H24: 0.03986332364 | I24: 0.001589084571 | K24: 20
B25: 18 | C25: =данные!L23 -> 0.9325891651 | D25: 0.9280640172 | E25: 0.00651868902 | F25: 0.9235388692 | G25: 0.009050295902 | H25: 0.009050295902 | I25: 8.190785592e-05 | K25: 21
B26: 19 | C26: =данные!L24 -> 0.8890317584 | D26: 0.9118072323 | E26: -0.002406912144 | F26: 0.9345827062 | G26: -0.04555094776 | H26: 0.04555094776 | I26: 0.002074888842 | K26: 22
B27: 20 | C27: =данные!L25 -> 0.9058287657 | D27: 0.9076145429 | E27: -0.003106749846 | F27: 0.9094003202 | G27: -0.003571554455 | H27: 0.003571554455 | I27: 1.275600123e-05 | K27: 23
B28: 21 | C28: =данные!L26 -> 0.9718163962 | D28: =$M$5*C28+(1-$M$5)*(D15+E15) -> 0.9537013774 | E28: =$N$5*(D28-D15)+(1-$N$5)*E15 -> 0.01043641195 | F28: =D15+E15 -> 0.9355863586 | G28: 0.03623003757 | H28: 0.03623003757 | I28: 0.001312615623 | K28: 24
B29: 22 | C29: =данные!L27 -> 0.9510550957 | D29: 0.9575964425 | E29: 0.007872888882 | F29: 0.9641377894 | G29: -0.01308269362 | H29: 0.01308269362 | I29: 0.0001711568722 | K29: 25
B30: 23 | C30: =данные!L28 -> 0.8879246103 | D30: 0.9266969708 | E30: -0.007321816991 | F30: 0.9654693314 | G30: -0.07754472116 | H30: 0.07754472116 | I30: 0.006013183781 | K30: 26 | M30: =AVERAGE(H7:H34)*10+0.04 -> 0.33520349
B31: 24 | C31: =данные!L29 -> 0.9418220461 | D31: 0.9305986 | E31: -0.0029234012 | F31: 0.9193751539 | G31: 0.02244689229 | H31: 0.02244689229 | I31: 0.0005038629733 | K31: 27
B32: 25 | C32: =данные!L30 -> 0.9293727783 | D32: 0.9285239886 | E32: -0.002590764477 | F32: 0.9276751988 | G32: 0.00169757955 | H32: 0.00169757955 | I32: 2.881776327e-06 | K32: 28
B33: 26 | C33: =данные!L31 -> 0.8930417972 | D33: 0.9094875106 | E33: -0.009035762286 | F33: 0.9259332241 | G33: -0.03289142693 | H33: 0.03289142693 | I33: 0.001081845966 | K33: 29
B34: 27 | C34: =данные!L32 -> 0.9056219517 | D34: 0.90303685 | E34: -0.008022673086 | F34: 0.9004517483 | G34: 0.005170203374 | H34: 0.005170203374 | I34: 2.673100293e-05 | K34: 30 | M34: =C35-J35 -> 0.01060777477
B35: 28 | C35: =данные!L33 -> 0.9056219517 | F35: =$D$34+(B35-$B$34)*$E$34 -> 0.8950141769 | J35: =F35 -> 0.8950141769 | K35: 31
B36: 29 | F36: =$D$34+(B36-$B$34)*$E$34 -> 0.8869915039 | J36: =F36 -> 0.8869915039
B37: 30 | F37: =$D$34+(B37-$B$34)*$E$34 -> 0.8789688308 | J37: 0.8789688308

Sheet 3
N2: =M34 -> 0.01071271538
V3: Оценка приемлемости прогноза:
B4: Rok | C4: Yt | D4: Ft | E4: St | F4: Yt* | G4: yt-yt* | H4: |yt-yt*| | I4: (yt-yt*)2 | M4: α | N4: β | P4: MAE | Q4: MSE | R4: RMSE | T4: T16 | U4: T17 | V4: T18
B5: 98 | C5: =данные!N3 -> 0.9748973017 | D5: =C5 -> 0.9748973017 | E5: =C6-C5 -> 0.006018849479 | K5: 1 | M5: 0.5 | N5: 0.3776735671 | P5: =AVERAGE(H7:H34) -> 0.03112198719 | Q5: =AVERAGE(I7:I34) -> 0.001663423453 | R5: =SQRT(Q5) -> 0.04078508861 | T5: =R5/F35 -> 0.04327213657 | U5: =R5/F36+T5 -> 0.08654236956 | V5: =R5/F37+U5 -> 0.1298106991
B6: 99 | C6: =данные!N4 -> 0.9809161512 | D6: =$M$5*C6+(1-$M$5)*(D5+E5) -> 0.9809161512 | E6: =$N$5*(D6-D5)+(1-$N$5)*E5 -> 0.006018849479 | F6: =D5+E5 -> 0.9809161512 | G6: =C6-F6 -> 0 | H6: =ABS(C6-F6) -> 0 | I6: =(C6-F6)^2 -> 0 | K6: 2 | N6: 0.2286571224
B7: 00 | C7: =данные!N5 -> 0.9641882882 | D7: 0.9755616444 | E7: 0.001723433459 | F7: =D6+E6 -> 0.9869350006 | G7: =C7-F7 -> -0.02274671247 | H7: 0.02274671247 | I7: 0.0005174129283 | K7: 3
B8: 01 | C8: =данные!N6 -> 0.9474427388 | D8: 0.9623639083 | E8: -0.003911897868 | F8: 0.9772850779 | G8: -0.02984233909 | H8: 0.02984233909 | I8: 0.0008905652022 | K8: 4 | N8: 0.61
B9: 02 | C9: =данные!N7 -> 0.9456216802 | D9: 0.9520368453 | E9: -0.006334736157 | F9: 0.9584520105 | G9: -0.01283033021 | H9: 0.01283033021 | I9: 0.0001646173733 | K9: 5
B10: 03 | C10: =данные!N8 -> 0.9154002212 | D10: 0.9305511652 | E10: -0.01205684723 | F10: 0.9457021092 | G10: -0.03030188802 | H10: 0.03030188802 | I10: 0.0009182044177 | K10: 6
B11: 04 | C11: =данные!N9 -> 0.9685594459 | D11: 0.9435268819 | E11: -0.002602709497 | F11: 0.918494318 | G11: 0.05006512795 | H11: 0.05006512795 | I11: 0.002506517037 | K11: 7
B12: 05 | C12: =данные!N10 -> 0.9140937021 | D12: 0.9275089373 | E12: -0.007669289207 | F12: 0.9409241724 | G12: -0.02683047028 | H12: 0.02683047028 | I12: 0.0007198741357 | K12: 8
B13: 06 | C13: =данные!N11 -> 0.907711865 | D13: 0.9137757566 | E13: -0.009959460747 | F13: 0.9198396481 | G13: -0.01212778304 | H13: 0.01212778304 | I13: 0.0001470831214 | K13: 9
B14: 07 | C14: =данные!N12 -> 0.9823013112 | D14: 0.9430588035 | E14: 0.004861397114 | F14: 0.9038162958 | G14: 0.07848501537 | H14: 0.07848501537 | I14: 0.006159897638 | K14: 10
B15: 08 | C15: =данные!N13 -> 0.9374980863 | D15: 0.9427091435 | E15: 0.002893318578 | F15: 0.9479202006 | G15: -0.01042211427 | H15: 0.01042211427 | I15: 0.0001086204658 | K15: 11
B16: 09 | C16: =данные!N14 -> 0.9796397632 | D16: 0.9626211127 | E16: 0.009320813054 | F16: 0.9456024621 | G16: 0.03403730118 | H16: 0.03403730118 | I16: 0.001158537872 | K16: 12
B17: 10 | C17: =данные!N15 -> 0.9797951493 | D17: 0.9758685375 | E17: 0.01080379054 | F17: 0.9719419257 | G17: 0.007853223623 | H17: 0.007853223623 | I17: 6.167312128e-05 | K17: 13
B18: 11 | C18: =данные!N16 -> 0.9889106894 | D18: 0.9877915088 | E18: 0.01122647551 | F18: 0.9866723281 | G18: 0.00223836138 | H18: 0.00223836138 | I18: 5.010261667e-06 | K18: 14
B19: 12 | C19: =данные!N17 -> 0.959366703 | D19: 0.9791923436 | E19: 0.003738855093 | F19: 0.9990179843 | G19: -0.03965128124 | H19: 0.03965128124 | I19: 0.001572224104 | K19: 15
B20: 13 | C20: =данные!N18 -> 0.9367177619 | D20: 0.9598244803 | E20: -0.004987941681 | F20: 0.9829311987 | G20: -0.04621343686 | H20: 0.04621343686 | I20: 0.002135681747 | K20: 16
B21: 14 | C21: =данные!N19 -> 0.9468755448 | D21: 0.9508560417 | E21: -0.006491270146 | F21: 0.9548365386 | G21: -0.007960993807 | H21: 0.007960993807 | I21: 6.33774224e-05 | K21: 17
B22: 15 | C22: =данные!N20 -> 0.9176861372 | D22: 0.9310254544 | E22: -0.01152917765 | F22: 0.9443647716 | G22: -0.02667863439 | H22: 0.02667863439 | I22: 0.0007117495329 | K22: 18
B23: 16 | C23: =данные!N21 -> 0.9701301979 | D23: 0.9448132373 | E23: -0.001967630847 | F23: 0.9194962767 | G23: 0.05063392114 | H23: 0.05063392114 | I23: 0.00256379397 | K23: 19
B24: 17 | C24: =данные!N22 -> 0.963336559 | D24: 0.9530910827 | E24: 0.001901814734 | F24: 0.9428456064 | G24: 0.0204909526 | H24: 0.0204909526 | I24: 0.0004198791383 | K24: 20
B25: 18 | C25: =данные!N23 -> 0.9596453289 | D25: 0.9573191132 | E25: 0.002780364918 | F25: 0.9549928975 | G25: 0.004652431417 | H25: 0.004652431417 | I25: 2.164511809e-05 | K25: 21
B26: 19 | C26: =данные!N24 -> 0.9032122315 | D26: 0.9316558548 | E26: -0.007962039758 | F26: 0.9600994781 | G26: -0.05688724661 | H26: 0.05688724661 | I26: 0.003236158827 | K26: 22
B27: 20 | C27: =данные!N25 -> 0.9257927184 | D27: 0.9247432667 | E27: -0.007565689604 | F27: 0.923693815 | G27: 0.002098903333 | H27: 0.002098903333 | I27: 4.405395199e-06 | K27: 23
B28: 21 | C28: =данные!N26 -> 1.040405409 | D28: =$M$5*C28+(1-$M$5)*(D15+E15) -> 0.9930039355 | E28: =$N$5*(D28-D15)+(1-$N$5)*E15 -> 0.02079560214 | F28: =D15+E15 -> 0.9456024621 | G28: 0.09480294688 | H28: 0.09480294688 | I28: 0.008987598738 | K28: 24
B29: 22 | C29: =данные!N27 -> 0.951806773 | D29: 0.9828031553 | E29: 0.009089087864 | F29: 1.013799538 | G29: -0.06199276463 | H29: 0.06199276463 | I29: 0.003843102866 | K29: 25
B30: 23 | C30: =данные!N28 -> 0.8971503123 | D30: 0.9445212778 | E30: -0.008801673632 | F30: 0.9918922432 | G30: -0.09474193088 | H30: 0.09474193088 | I30: 0.008976033466 | K30: 26 | M30: =AVERAGE(H7:H34)*10+0.04 -> 0.3512198719
B31: 24 | C31: =данные!N29 -> 0.9456111252 | D31: 0.9406653647 | E31: -0.006933790608 | F31: 0.9357196041 | G31: 0.009891521071 | H31: 0.009891521071 | I31: 9.784218911e-05 | K31: 27
B32: 25 | C32: =данные!N30 -> 0.9402836384 | D32: 0.9370076062 | E32: -0.005696519859 | F32: 0.9337315741 | G32: 0.006552064304 | H32: 0.006552064304 | I32: 4.292954664e-05 | K32: 28
B33: 26 | C33: =данные!N31 -> 0.9401886722 | D33: 0.9357498793 | E33: -0.004020105099 | F33: 0.9313110863 | G33: 0.008877585865 | H33: 0.008877585865 | I33: 7.88115308e-05 | K33: 29
B34: 27 | C34: =данные!N32 -> 0.9532381336 | D34: 0.9424839539 | E34: 4.146430603e-05 | F34: 0.9317297742 | G34: 0.02150835938 | H34: 0.02150835938 | I34: 0.0004626095231 | K34: 30 | M34: =C35-J35 -> 0.01071271538
B35: 28 | C35: =данные!N33 -> 0.9532381336 | F35: =$D$34+(B35-$B$34)*$E$34 -> 0.9425254182 | J35: =F35 -> 0.9425254182 | K35: 31
B36: 29 | F36: =$D$34+(B36-$B$34)*$E$34 -> 0.9425668825 | J36: =F36 -> 0.9425668825
B37: 30 | F37: =$D$34+(B37-$B$34)*$E$34 -> 0.9426083468 | J37: 0.9426083468

Sheet 4
N2: =M34 -> 0.04328462368
V3: Оценка приемлемости прогноза:
B4: Rok | C4: Yt | D4: Ft | E4: St | F4: Yt* | G4: yt-yt* | H4: |yt-yt*| | I4: (yt-yt*)2 | M4: α | N4: β | P4: MAE | Q4: MSE | R4: RMSE | T4: T16 | U4: T17 | V4: T18
B5: 98 | C5: =данные!P3 -> 1.065335888 | D5: =C5 -> 1.065335888 | E5: =C6-C5 -> -0.06051971466 | K5: 1 | M5: 0.5 | N5: 0.491703995 | P5: =AVERAGE(H7:H34) -> 0.0450998441 | Q5: =AVERAGE(I7:I34) -> 0.003247463238 | R5: =SQRT(Q5) -> 0.05698651804 | T5: =R5/F35 -> 0.05329471059 | U5: =R5/F36+T5 -> 0.1052883917 | V5: =R5/F37+U5 -> 0.1560430511
B6: 99 | C6: =данные!P4 -> 1.004816173 | D6: =$M$5*C6+(1-$M$5)*(D5+E5) -> 1.004816173 | E6: =$N$5*(D6-D5)+(1-$N$5)*E5 -> -0.06051971466 | F6: =D5+E5 -> 1.004816173 | G6: =C6-F6 -> 0 | H6: =ABS(C6-F6) -> 0 | I6: =(C6-F6)^2 -> 0 | K6: 2 | N6: 0.2286571224
B7: 00 | C7: =данные!P5 -> 1.004701143 | D7: 0.9744988008 | E7: -0.04566910231 | F7: =D6+E6 -> 0.9442964585 | G7: =C7-F7 -> 0.06040468453 | H7: 0.06040468453 | I7: 0.003648725913 | K7: 3
B8: 01 | C8: =данные!P6 -> 0.9838545521 | D8: 0.9563421253 | E8: -0.03214113214 | F8: 0.9288296985 | G8: 0.05502485363 | H8: 0.05502485363 | I8: 0.003027734517 | K8: 4 | N8: 0.61
B9: 02 | C9: =данные!P7 -> 0.9765916486 | D9: 0.9503963209 | E9: -0.01926078484 | F9: 0.9242009932 | G9: 0.05239065548 | H9: 0.05239065548 | I9: 0.002744780782 | K9: 5
B10: 03 | C10: =данные!P8 -> 0.9219883219 | D10: 0.926561929 | E10: -0.02150964572 | F10: 0.9311355361 | G10: -0.009147214207 | H10: 0.009147214207 | I10: 8.367152776e-05 | K10: 6
B11: 04 | C11: =данные!P9 -> 0.9866947153 | D11: 0.9458734993 | E11: -0.001437690722 | F11: 0.9050522832 | G11: 0.08164243205 | H11: 0.08164243205 | I11: 0.006665486712 | K11: 7
B12: 05 | C12: =данные!P10 -> 0.9503668727 | D12: 0.9474013406 | E12: 2.047323863e-05 | F12: 0.9444358085 | G12: 0.005931064117 | H12: 0.005931064117 | I12: 3.517752156e-05 | K12: 8
B13: 06 | C13: =данные!P11 -> 0.9443085943 | D13: 0.9458652041 | E13: -0.0007449179942 | F13: 0.9474218138 | G13: -0.003113219501 | H13: 0.003113219501 | I13: 9.69213566e-06 | K13: 9
B14: 07 | C14: =данные!P12 -> 0.9966307432 | D14: 0.9708755146 | E14: 0.01191903077 | F14: 0.9451202861 | G14: 0.05151045709 | H14: 0.05151045709 | I14: 0.002653327189 | K14: 10
B15: 08 | C15: =данные!P13 -> 0.9766040203 | D15: 0.9796992829 | E15: 0.01039707781 | F15: 0.9827945454 | G15: -0.00619052511 | H15: 0.00619052511 | I15: 3.832260114e-05 | K15: 11
B16: 09 | C16: =данные!P14 -> 0.9886738755 | D16: 0.9893851181 | E16: 0.01004735698 | F16: 0.9900963607 | G16: -0.001422485185 | H16: 0.001422485185 | I16: 2.023464101e-06 | K16: 12
B17: 10 | C17: =данные!P15 -> 0.9942042617 | D17: 0.9968183684 | E17: 0.008761990298 | F17: 0.9994324751 | G17: -0.00522821331 | H17: 0.00522821331 | I17: 2.733421442e-05 | K17: 13
B18: 11 | C18: =данные!P16 -> 1.093451105 | D18: 1.049515732 | E18: 0.03036518887 | F18: 1.005580359 | G18: 0.08787074661 | H18: 0.08787074661 | I18: 0.00772126811 | K18: 14
B19: 12 | C19: =данные!P17 -> 0.9731985689 | D19: 1.026539745 | E19: 0.00413711955 | F19: 1.079880921 | G19: -0.106682352 | H19: 0.106682352 | I19: 0.01138112422 | K19: 15
B20: 13 | C20: =данные!P18 -> 0.9522196208 | D20: 0.9914482426 | E20: -0.01515175052 | F20: 1.030676864 | G20: -0.07845724365 | H20: 0.07845724365 | I20: 0.006155539081 | K20: 16
B21: 14 | C21: =данные!P19 -> 0.9806554414 | D21: 0.9784759668 | E21: -0.01408009412 | F21: 0.9762964921 | G21: 0.004358949321 | H21: 0.004358949321 | I21: 1.900043919e-05 | K21: 17
B22: 15 | C22: =данные!P20 -> 0.9442965635 | D22: 0.9543462181 | E22: -0.01902154943 | F22: 0.9643958727 | G22: -0.02009930918 | H22: 0.02009930918 | I22: 0.0004039822295 | K22: 18
B23: 16 | C23: =данные!P21 -> 0.9809634 | D23: 0.9581440343 | E23: -0.007801176165 | F23: 0.9353246686 | G23: 0.04563873135 | H23: 0.04563873135 | I23: 0.002082893799 | K23: 19
B24: 17 | C24: =данные!P22 -> 0.9949211436 | D24: 0.9726320009 | E24: 0.00315848436 | F24: 0.9503428581 | G24: 0.04457828546 | H24: 0.04457828546 | I24: 0.001987223535 | K24: 20
B25: 18 | C25: =данные!P23 -> 1.032887697 | D25: 1.004339091 | E25: 0.01719594789 | F25: 0.9757904852 | G25: 0.05709721164 | H25: 0.05709721164 | I25: 0.003260091577 | K25: 21
B26: 19 | C26: =данные!P24 -> 0.9859733854 | D26: 1.003754212 | E26: 0.008453044324 | F26: 1.021535039 | G26: -0.03556165359 | H26: 0.03556165359 | I26: 0.001264631206 | K26: 22
B27: 20 | C27: =данные!P25 -> 0.9553592602 | D27: 0.9837832583 | E27: -0.005523149117 | F27: 1.012207256 | G27: -0.05684799629 | H27: 0.05684799629 | I27: 0.003231694683 | K27: 23
B28: 21 | C28: =данные!P26 -> 1.058499533 | D28: =$M$5*C28+(1-$M$5)*(D15+E15) -> 1.024297947 | E28: =$N$5*(D28-D15)+(1-$N$5)*E15 -> 0.02721413435 | F28: =D15+E15 -> 0.9900963607 | G28: 0.0684031723 | H28: 0.0684031723 | I28: 0.00467899398 | K28: 24
B29: 22 | C29: =данные!P27 -> 0.9758201121 | D29: 1.013666097 | E29: 0.008605112562 | F29: 1.051512081 | G29: -0.07569196907 | H29: 0.07569196907 | I29: 0.005729274182 | K29: 25
B30: 23 | C30: =данные!P28 -> 0.9663189833 | D30: 0.9942950962 | E30: -0.005150853938 | F30: 1.022271209 | G30: -0.0559522259 | H30: 0.0559522259 | I30: 0.003130651583 | K30: 26 | M30: =AVERAGE(H7:H34)*10+0.04 -> 0.490998441
B31: 24 | C31: =данные!P29 -> 0.9938571021 | D31: 0.9915006722 | E31: -0.003992187936 | F31: 0.9891442423 | G31: 0.00471285983 | H31: 0.00471285983 | I31: 2.221104777e-05 | K31: 27
B32: 25 | C32: =данные!P30 -> 1.004379746 | D32: 0.9959441151 | E32: 0.0001556454203 | F32: 0.9875084843 | G32: 0.01687126157 | H32: 0.01687126157 | I32: 0.0002846394668 | K32: 28
B33: 26 | C33: =данные!P31 -> 0.9642155626 | D33: 0.9801576615 | E33: -0.007683148318 | F33: 0.9960997605 | G33: -0.03188419789 | H33: 0.03188419789 | I33: 0.001016602075 | K33: 29
B34: 27 | C34: =данные!P32 -> 1.112556178 | D34: 1.042515346 | E34: 0.02675620885 | F34: 0.9724745132 | G34: 0.1400816651 | H34: 0.1400816651 | I34: 0.01962287289 | K34: 30 | M34: =C35-J35 -> 0.04328462368
B35: 28 | C35: =данные!P33 -> 1.112556178 | F35: =$D$34+(B35-$B$34)*$E$34 -> 1.069271555 | J35: =F35 -> 1.069271555 | K35: 31
B36: 29 | F36: =$D$34+(B36-$B$34)*$E$34 -> 1.096027763 | J36: =F36 -> 1.096027763
B37: 30 | F37: =$D$34+(B37-$B$34)*$E$34 -> 1.122783972 | J37: 1.122783972

Sheet 5
N2: =M34 -> -0.002942520812
V3: Оценка приемлемости прогноза:
B4: Rok | C4: Yt | D4: Ft | E4: St | F4: Yt* | G4: yt-yt* | H4: |yt-yt*| | I4: (yt-yt*)2 | M4: α | N4: β | P4: MAE | Q4: MSE | R4: RMSE | T4: T16 | U4: T17 | V4: T18
B5: 98 | C5: =данные!R3 -> 1.083218815 | D5: =C5 -> 1.083218815 | E5: =C6-C5 -> -0.02634664815 | K5: 1 | M5: 0.5 | N5: 0.6007878499 | P5: =AVERAGE(H7:H34) -> 0.06592007465 | Q5: =AVERAGE(I7:I34) -> 0.00683018673 | R5: =SQRT(Q5) -> 0.08264494377 | T5: =R5/F35 -> 0.07401415118 | U5: =R5/F36+T5 -> 0.1472377783 | V5: =R5/F37+U5 -> 0.2196875897
B6: 99 | C6: =данные!R4 -> 1.056872167 | D6: =$M$5*C6+(1-$M$5)*(D5+E5) -> 1.056872167 | E6: =$N$5*(D6-D5)+(1-$N$5)*E5 -> -0.02634664815 | F6: =D5+E5 -> 1.056872167 | G6: =C6-F6 -> 0 | H6: =ABS(C6-F6) -> 0 | I6: =(C6-F6)^2 -> 0 | K6: 2 | N6: 0.2286571224
B7: 00 | C7: =данные!R5 -> 1.095750222 | D7: 1.063137871 | E7: -0.006753543577 | F7: =D6+E6 -> 1.030525519 | G7: =C7-F7 -> 0.0652247031 | H7: 0.0652247031 | I7: 0.004254261895 | K7: 3
B8: 01 | C8: =данные!R6 -> 1.038862136 | D8: 1.047623231 | E8: -0.01201710332 | F8: 1.056384327 | G8: -0.01752219105 | H8: 0.01752219105 | I8: 0.0003070271791 | K8: 4 | N8: 0.162345
B9: 02 | C9: =данные!R7 -> 1.019409024 | D9: 1.027507576 | E9: -0.01688261492 | F9: 1.035606128 | G9: -0.01619710386 | H9: 0.01619710386 | I9: 0.0002623461736 | K9: 5
B10: 03 | C10: =данные!R8 -> 0.944231898 | D10: 0.9774284296 | E10: -0.03682668781 | F10: 1.010624961 | G10: -0.06639306333 | H10: 0.06639306333 | I10: 0.004408038858 | K10: 6
B11: 04 | C11: =данные!R9 -> 0.9897333995 | D11: 0.9651675707 | E11: -0.02206783632 | F11: 0.9406017418 | G11: 0.04913165766 | H11: 0.04913165766 | I11: 0.002413919784 | K11: 7
B12: 05 | C12: =данные!R10 -> 0.9754988666 | D12: 0.9592993005 | E12: -0.01233533381 | F12: 0.9430997343 | G12: 0.03239913228 | H12: 0.03239913228 | I12: 0.001049703772 | K12: 8
B13: 06 | C13: =данные!R11 -> 0.9465216022 | D13: 0.9467427844 | E13: -0.01246821741 | F13: 0.9469639667 | G13: -0.0004423644605 | H13: 0.0004423644605 | I13: 1.956863159e-07 | K13: 9
B14: 07 | C14: =данные!R12 -> 1.10623362 | D14: 1.020254094 | E14: 0.03918723752 | F14: 0.934274567 | G14: 0.1719590532 | H14: 0.1719590532 | I14: 0.02956991599 | K14: 10
B15: 08 | C15: =данные!R13 -> 0.9805901191 | D15: 1.020015725 | E15: 0.01550081245 | F15: 1.059441331 | G15: -0.07885121204 | H15: 0.07885121204 | I15: 0.00621751364 | K15: 11
B16: 09 | C16: =данные!R14 -> 0.9958325207 | D16: 1.015674529 | E16: 0.003579974863 | F16: 1.035516538 | G16: -0.03968401688 | H16: 0.03968401688 | I16: 0.001574821196 | K16: 12
B17: 10 | C17: =данные!R15 -> 1.007583365 | D17: 1.013418934 | E17: 7.40354539e-05 | F17: 1.019254504 | G17: -0.01167113952 | H17: 0.01167113952 | I17: 0.0001362154977 | K17: 13
B18: 11 | C18: =данные!R16 -> 1.149469335 | D18: 1.081481152 | E18: 0.04092050958 | F18: 1.01349297 | G18: 0.1359763655 | H18: 0.1359763655 | I18: 0.01848957197 | K18: 14
B19: 12 | C19: =данные!R17 -> 0.995428791 | D19: 1.058915227 | E19: 0.002778630475 | F19: 1.122401662 | G19: -0.1269728711 | H19: 0.1269728711 | I19: 0.01612210999 | K19: 15
B20: 13 | C20: =данные!R18 -> 0.9559194011 | D20: 1.008806629 | E20: -0.0289953735 | F20: 1.061693857 | G20: -0.1057744559 | H20: 0.1057744559 | I20: 0.01118823552 | K20: 16
B21: 14 | C21: =данные!R19 -> 0.983675243 | D21: 0.9817432492 | E21: -0.02783465515 | F21: 0.9798112555 | G21: 0.003863987431 | H21: 0.003863987431 | I21: 1.493039886e-05 | K21: 17
B22: 15 | C22: =данные!R20 -> 0.9719529855 | D22: 0.9629307898 | E22: -0.02241422958 | F22: 0.9539085941 | G22: 0.01804439144 | H22: 0.01804439144 | I22: 0.0003256000624 | K22: 18
B23: 16 | C23: =данные!R21 -> 0.9991668016 | D23: 0.9698416809 | E23: -0.004796053367 | F23: 0.9405165602 | G23: 0.05865024139 | H23: 0.05865024139 | I23: 0.003439850815 | K23: 19
B24: 17 | C24: =данные!R22 -> 1.115217384 | D24: 1.040131506 | E24: 0.0403146299 | F24: 0.9650456276 | G24: 0.1501717562 | H24: 0.1501717562 | I24: 0.02255155636 | K24: 20
B25: 18 | C25: =данные!R23 -> 1.04564554 | D25: 1.063045838 | E25: 0.02986074241 | F25: 1.080446136 | G25: -0.03480059553 | H25: 0.03480059553 | I25: 0.001211081449 | K25: 21
B26: 19 | C26: =данные!R24 -> 1.129984999 | D26: 1.111445789 | E26: 0.04099887409 | F26: 1.09290658 | G26: 0.03707841853 | H26: 0.03707841853 | I26: 0.001374809121 | K26: 22
B27: 20 | C27: =данные!R25 -> 1.047007231 | D27: 1.099725947 | E27: 0.009326109931 | F27: 1.152444664 | G27: -0.1054374324 | H27: 0.1054374324 | I27: 0.01111705215 | K27: 23
B28: 21 | C28: =данные!R26 -> 1.084392279 | D28: =$M$5*C28+(1-$M$5)*(D15+E15) -> 1.059954409 | E28: =$N$5*(D28-D15)+(1-$N$5)*E15 -> 0.03018278837 | F28: =D15+E15 -> 1.035516538 | G28: 0.04887574182 | H28: 0.04887574182 | I28: 0.002388838138 | K28: 24
B29: 22 | C29: =данные!R27 -> 0.9807726265 | D29: 1.035454912 | E29: -0.002669664189 | F29: 1.090137197 | G29: -0.1093645704 | H29: 0.1093645704 | I29: 0.01196060926 | K29: 25
B30: 23 | C30: =данные!R28 -> 0.9692531502 | D30: 1.001019199 | E30: -0.02175432024 | F30: 1.032785247 | G30: -0.06353209724 | H30: 0.06353209724 | I30: 0.00403632738 | K30: 26 | M30: =AVERAGE(H7:H34)*10+0.04 -> 0.6992007465
B31: 24 | C31: =данные!R29 -> 1.145025467 | D31: 1.062145173 | E31: 0.02803915344 | F31: 0.9792648786 | G31: 0.1657605882 | H31: 0.1657605882 | I31: 0.02747657259 | K31: 27
B32: 25 | C32: =данные!R30 -> 1.111345534 | D32: 1.10076493 | E32: 0.03439585179 | F32: 1.090184326 | G32: 0.02116120806 | H32: 0.02116120806 | I32: 0.0004477967265 | K32: 28
B33: 26 | C33: =данные!R31 -> 1.042563906 | D33: 1.088862344 | E33: 0.006580312668 | F33: 1.135160782 | G33: -0.09259687632 | H33: 0.09259687632 | I33: 0.008574181504 | K33: 29
B34: 27 | C34: =данные!R32 -> 1.113667512 | D34: 1.104555084 | E34: 0.01205494852 | F34: 1.095442656 | G34: 0.01822485541 | H34: 0.01822485541 | I34: 0.0003321453548 | K34: 30 | M34: =C35-J35 -> -0.002942520812
B35: 28 | C35: =данные!R33 -> 1.113667512 | F35: =$D$34+(B35-$B$34)*$E$34 -> 1.116610033 | J35: =F35 -> 1.116610033 | K35: 31
B36: 29 | F36: =$D$34+(B36-$B$34)*$E$34 -> 1.128664981 | J36: =F36 -> 1.128664981
B37: 30 | F37: =$D$34+(B37-$B$34)*$E$34 -> 1.14071993 | J37: 1.14071993

Sheet 6
F2: =AVERAGE(F6:F34) -> 0.9373390355 | G2: =AVERAGE(G6:G34) -> -0.01332771848 | H2: 0.03381323389 | N2: =M34 -> -4.739660349e-05
V3: Оценка приемлемости прогноза:
B4: Rok | C4: Yt | D4: Ft | E4: St | F4: Yt* | G4: yt-yt* | H4: |yt-yt*| | I4: (yt-yt*)2 | M4: α | N4: β | P4: MAE | Q4: MSE | R4: RMSE | T4: T16 | U4: T17 | V4: T18
B5: 98 | C5: 0.9243275533 | D5: =C5 -> 0.9243275533 | E5: =C6-C5 -> 0.007841041984 | K5: 1 | M5: 0.9339428152 | N5: -0.009931498107 | P5: =AVERAGE(H7:H34) -> 0.03502084939 | Q5: =AVERAGE(I7:I34) -> 0.001737713112 | R5: =SQRT(Q5) -> 0.04168588624 | T5: =R5/F35 -> 0.04602771014 | U5: =R5/F36+T5 -> 0.09157543942 | V5: =R5/F37+U5 -> 0.1366530951
B6: 99 | C6: 0.9321685953 | D6: =$M$5*C6+(1-$M$5)*(D5+E5) -> 0.9321685953 | E6: =$N$5*(D6-D5)+(1-$N$5)*E5 -> 0.007841041984 | F6: =D5+E5 -> 0.9321685953 | G6: =C6-F6 -> 0 | H6: =ABS(C6-F6) -> 0 | I6: =(C6-F6)^2 -> 0 | K6: 2 | N6: 0.2286571224
B7: 00 | C7: 0.9689538787 | D7: 0.9670419036 | E7: 0.007572571082 | F7: =D6+E6 -> 0.9400096373 | G7: =C7-F7 -> 0.02894424142 | H7: 0.02894424142 | I7: 0.0008377691115 | K7: 3
B8: 01 | C8: 0.920645369 | D8: 0.9242104162 | E8: 0.008073158893 | F8: 0.9746144747 | G8: -0.05396910569 | H8: 0.05396910569 | I8: 0.002912664369 | K8: 4 | N8: 0.61
B9: 02 | C9: 0.925667984 | D9: 0.9261049913 | E9: 0.008134521486 | F9: 0.9322835751 | G9: -0.006615591058 | H9: 0.006615591058 | I9: 4.376604505e-05 | K9: 5
B10: 03 | C10: 0.9456216802 | D10: 0.9448698063 | E10: 0.008028946746 | F10: 0.9342395128 | G10: 0.01138216742 | H10: 0.01138216742 | I10: 0.0001295537353 | K10: 6
B11: 04 | C11: 0.8871006932 | D11: 0.8914471278 | E11: 0.008639253446 | F11: 0.9528987531 | G11: -0.06579805986 | H11: 0.06579805986 | I11: 0.004329384681 | K11: 7
B12: 05 | C12: 0.9453139407 | D12: 0.9423263355 | E12: 0.008219747421 | F12: 0.9000863812 | G12: 0.04522755951 | H12: 0.04522755951 | I12: 0.002045532139 | K12: 8
B13: 06 | C13: 0.9021901701 | D13: 0.9053844255 | E13: 0.008668270335 | F13: 0.9505460829 | G13: -0.04835591285 | H13: 0.04835591285 | I13: 0.002338294308 | K13: 9
B14: 07 | C14: 0.8961615814 | D14: 0.8973434181 | E14: 0.008834218496 | F14: 0.9140526959 | G14: -0.01789111444 | H14: 0.01789111444 | I14: 0.0003200919757 | K14: 10
B15: 08 | C15: 0.9773042679 | D15: 0.9726058429 | E15: 0.008174486891 | F15: 0.9061776366 | G15: 0.07112663136 | H15: 0.07112663136 | I15: 0.005058997689 | K15: 11
B16: 09 | C16: 0.9230748314 | D16: 0.9268866942 | E16: 0.008709731431 | F16: 0.9807803298 | G16: -0.05770549837 | H16: 0.05770549837 | I16: 0.003329924542 | K16: 12
B17: 10 | C17: 0.9439593102 | D17: 0.9434068816 | E17: 0.008632161902 | F17: 0.9355964256 | G17: 0.008362884561 | H17: 0.008362884561 | I17: 6.993783818e-05 | K17: 13
B18: 11 | C18: 0.9083521613 | D18: 0.9112379937 | E18: 0.009037377451 | F18: 0.9520390435 | G18: -0.04368688222 | H18: 0.04368688222 | I18: 0.001908543678 | K18: 14
B19: 12 | C19: 0.9425552521 | D19: 0.9410835059 | E19: 0.0088307215 | F19: 0.9202753712 | G19: 0.0222798809 | H19: 0.0222798809 | I19: 0.000496393093 | K19: 15
B20: 13 | C20: 0.9105043197 | D20: 0.9131076272 | E20: 0.00919626618 | F20: 0.9499142274 | G20: -0.0394099077 | H20: 0.0394099077 | I20: 0.001553140825 | K20: 16
B21: 14 | C21: 0.9196133178 | D21: 0.9197910496 | E21: 0.009221222483 | F21: 0.9223038934 | G21: -0.002690575634 | H21: 0.002690575634 | I21: 7.239197244e-06 | K21: 17
B22: 15 | C22: 0.8925791215 | D22: 0.8949857929 | E22: 0.009559156397 | F22: 0.9290122721 | G22: -0.03643315058 | H22: 0.03643315058 | I22: 0.001327374461 | K22: 18
B23: 16 | C23: 0.9015773124 | D23: 0.9017733462 | E23: 0.009586682568 | F23: 0.9045449493 | G23: -0.002967636862 | H23: 0.002967636862 | I23: 8.806868547e-06 | K23: 19
B24: 17 | C24: 0.9117767686 | D24: 0.9117492399 | E24: 0.009582817118 | F24: 0.9113600287 | G24: 0.000416739834 | H24: 0.000416739834 | I24: 1.736720893e-07 | K24: 20
B25: 18 | C25: 0.9387252262 | D25: 0.9375762824 | E25: 0.009421487624 | F25: 0.921332057 | G25: 0.0173931692 | H25: 0.0173931692 | I25: 0.0003025223348 | K25: 21
B26: 19 | C26: 0.9325891651 | D26: 0.933540957 | E26: 0.009555133938 | F26: 0.9469977701 | G26: -0.01440860494 | H26: 0.01440860494 | I26: 0.0002076078963 | K26: 22
B27: 20 | C27: 0.8890317584 | D27: 0.892603096 | E27: 0.01005660502 | F27: 0.9430960909 | G27: -0.05406433251 | H27: 0.05406433251 | I27: 0.00292295205 | K27: 23
B28: 21 | C28: 0.9058287657 | D28: =$M$5*C28+(1-$M$5)*(D15+E15) -> 0.910779855 | E28: =$N$5*(D28-D15)+(1-$N$5)*E15 -> 0.008869696473 | F28: =D15+E15 -> 0.9807803298 | G28: -0.0749515641 | H28: 0.0749515641 | I28: 0.005617736962 | K28: 24
B29: 22 | C29: 0.9718163962 | D29: 0.9683704013 | E29: 0.008385825446 | F29: 0.9196495515 | G29: 0.05216684469 | H29: 0.05216684469 | I29: 0.002721379685 | K29: 25
B30: 23 | C30: 0.9510550957 | D30: 0.9527528401 | E30: 0.008624215035 | F30: 0.9767562267 | G30: -0.025701131 | H30: 0.025701131 | I30: 0.0006605481345 | K30: 26 | M30: =AVERAGE(H7:H34)*10+0.04 -> 0.3902084939
B31: 24 | C31: 0.8879246103 | D31: 0.892776672 | E31: 0.00930551961 | F31: 0.9613770551 | G31: -0.07345244487 | H31: 0.07345244487 | I31: 0.005395261657 | K31: 27
B32: 25 | C32: 0.9418220461 | D32: 0.9391969432 | E32: 0.008936914525 | F32: 0.9020821916 | G32: 0.03973985454 | H32: 0.03973985454 | I32: 0.001579256039 | K32: 28
B33: 26 | C33: 0.9293727783 | D33: 0.9306120824 | E33: 0.009110932003 | F33: 0.9481338577 | G33: -0.0187610794 | H33: 0.0187610794 | I33: 0.0003519781003 | K33: 29
B34: 27 | C34: 0.8930417972 | D34: 0.896125427 | E34: 0.009543921361 | F34: 0.9397230144 | G34: -0.04668121728 | H34: 0.04668121728 | I34: 0.002179136047 | K34: 30 | M34: =C35-J35 -> -4.739660349e-05
B35: 28 | C35: 0.9056219517 | F35: =$D$34+(B35-$B$34)*$E$34 -> 0.9056693483 | J35: =F35 -> 0.9056693483 | K35: 31
B36: 29 | F36: =$D$34+(B36-$B$34)*$E$34 -> 0.9152132697 | J36: =F36 -> 0.9152132697
B37: 30 | F37: =$D$34+(B37-$B$34)*$E$34 -> 0.924757191 | J37: 0.924757191

Sheet данные
A1: ='1'!M30 -> 0.3034592363 | B1: ='2'!M30 -> 0.33520349 | C1: ='3'!M30 -> 0.3512198719 | D1: ='4'!M30 -> 0.490998441 | E1: ='5'!M30 -> 0.6992007465 | F1: ='6'!M30 -> 0.3902084939 | K1: ='1'!M34 -> -0.006300620455 | M1: ='2'!M34 -> 0.01060777477 | O1: ='3'!M34 -> 0.01071271538 | Q1: ='4'!M34 -> 0.04328462368 | S1: ='5'!M34 -> -0.002942520812 | U1: ='6'!M34 -> -4.739660349e-05
J2: ='1'!J35 -> 0.891348841 | K2: 0 | L2: ='2'!J35 -> 0.8950141769 | M2: 0 | N2: ='3'!J35 -> 0.9425254182 | O2: 0 | P2: ='4'!J35 -> 1.069271555 | Q2: 0 | R2: ='5'!J35 -> 1.116610033 | S2: 0 | T2: ='6'!J35 -> 0.9056693483 | U2: 0
A3: 0.9336949672 | B3: 0.959881655 | C3: 0.9729259923 | D3: 0.99374523 | E3: 1.017747448 | F3: 1.10618357 | G3: 53 | I3: 1 | J3: 0.8962028557 | K3: =$AC3-($J$2+$K$2) -> -0.05013440687 | L3: 0.9321685953 | M3: =$AC3-($L$2+$M$2) -> -0.05379974282 | N3: 0.9748973017 | O3: =$AC3-($N$2+$O$2) -> -0.101310984 | P3: 1.065335888 | Q3: =$AC3-($P$2+$Q$2) -> -0.2280571205 | R3: 1.083218815 | S3: =$AC3-($R$2+$S$2) -> -0.2753955986 | T3: 1.194079967 | U3: =$AC3-($T$2+$U$2) -> -0.06445491419 | Z3: 6.87586 | AB3: 68.7586 | AC3: 0.8412144341
A4: 0.8850244273 | B4: 0.8859607575 | C4: 0.9177016151 | D4: 0.9762957847 | E4: 0.9866824316 | F4: 1.078042029 | G4: 52 | I4: 2 | J4: 0.8754321067 | K4: =AC4-($J$2+$K$2) -> -0.03665830789 | L4: 0.9689538787 | M4: -0.04032364384 | N4: 0.9809161512 | O4: -0.08783488507 | P4: 1.004816173 | Q4: -0.2145810215 | R4: 1.056872167 | S4: -0.2619194996 | T4: 1.110405666 | U4: -0.05097881521 | Z4: 6.98601 | AB4: 69.8601 | AC4: 0.8546905331
A5: 0.9504039163 | B5: 0.9931139341 | C5: 1.05544585 | D5: 1.07535946 | E5: 1.107781127 | F5: 1.145584751 | G5: 51 | I5: 3 | J5: 0.9021020131 | K5: -0.00854140306 | L5: 0.920645369 | M5: -0.01220673901 | N5: 0.9641882882 | O5: -0.05971798024 | P5: 1.004701143 | Q5: -0.1864641167 | R5: 1.095750222 | S5: -0.2338025948 | T5: 1.144103721 | U5: -0.02286191038 | Z5: 7.21583 | AB5: 72.1583 | AC5: 0.8828074379
A6: 0.9252125907 | B6: 0.9535533519 | C6: 0.9800980833 | D6: 1.067767857 | E6: 1.091160348 | F6: 1.13984427 | G6: 50 | I6: 4 | J6: 0.9204330196 | K6: -0.003031067173 | L6: 0.925667984 | M6: -0.00669640312 | N6: 0.9474427388 | O6: -0.05420764435 | P6: 0.9838545521 | Q6: -0.1809537808 | R6: 1.038862136 | S6: -0.2282922589 | T6: 1.093172133 | U6: -0.0173515745 | Z6: 7.26087 | AB6: 72.6087 | AC6: 0.8883177738
A7: 0.8680629984 | B7: 0.9037255399 | C7: 0.9085119155 | D7: 0.9552017467 | E7: 0.9661346813 | F7: 0.9949754736 | G7: 49 | I7: 5 | J7: 0.921239189 | K7: -0.003031067173 | L7: 0.9456216802 | M7: -0.00669640312 | N7: 0.9456216802 | O7: -0.05420764435 | P7: 0.9765916486 | Q7: -0.1809537808 | R7: 1.019409024 | S7: -0.2282922589 | T7: 1.193934266 | U7: -0.0173515745 | Z7: 7.26087 | AB7: 72.6087 | AC7: 0.8883177738
A8: 0.9070457167 | B8: 0.9083885624 | C8: 0.9323661997 | D8: 0.9916008882 | E8: 1.062603855 | F8: 1.134819794 | G8: 48 | I8: 6 | J8: 0.8843136556 | K8: -0.001416137472 | L8: 0.8871006932 | M8: -0.005081473419 | N8: 0.9154002212 | O8: -0.05259271465 | P8: 0.9219883219 | Q8: -0.1793388511 | R8: 0.944231898 | S8: -0.2266773292 | T8: 1.016249783 | U8: -0.0157366448 | Z8: 7.27407 | AB8: 72.7407 | AC8: 0.8899327035
A9: 0.9083180045 | B9: 0.9440619177 | C9: 0.9764083024 | D9: 1.070483811 | E9: 1.1078076 | F9: 1.144766142 | G9: 47 | I9: 7 | J9: 0.8949041433 | K9: 0.01093195758 | L9: 0.9453139407 | M9: 0.007266621632 | N9: 0.9685594459 | O9: -0.0402446196 | P9: 0.9866947153 | Q9: -0.166990756 | R9: 0.9897333995 | S9: -0.2143292341 | T9: 1.041371419 | U9: -0.003388549744 | Z9: 7.375 | AB9: 73.75 | AC9: 0.9022807986
A10: 0.9254105098 | B10: 0.9318333993 | C10: 0.9839979425 | D10: 0.99450189 | E10: 1.139919587 | F10: 1.183138138 | G10: 46 | I10: 8 | J10: 0.8722707794 | K10: 0.0143563426 | L10: 0.9021901701 | M10: 0.01069100666 | N10: 0.9140937021 | O10: -0.03682023458 | P10: 0.9503668727 | Q10: -0.163566371 | R10: 0.9754988666 | S10: -0.2109048491 | T10: 1.145143809 | U10: 3.58352798e-05 | Z10: 7.40299 | AB10: 74.0299 | AC10: 0.9057051836
A11: 0.9582856792 | B11: 0.9886947384 | C11: 0.9938816621 | D11: 1.054353333 | E11: 1.07660679 | F11: 1.100623091 | G11: 45 | I11: 9 | J11: 0.8897602785 | K11: 0.01748588061 | L11: 0.8961615814 | M11: 0.01382054467 | N11: 0.907711865 | O11: -0.03369069656 | P11: 0.9443085943 | Q11: -0.160436833 | R11: 0.9465216022 | S11: -0.2077753111 | T11: 1.098330756 | U11: 0.00316537329 | Z11: 7.42857 | AB11: 74.2857 | AC11: 0.9088347216
A12: 0.9014256234 | B12: 0.9713731288 | C12: 0.9765442212 | D12: 0.985779452 | E12: 1.184110379 | F12: 1.197017906 | G12: 44 | I12: 10 | J12: 0.8913399297 | K12: 0.0180082859 | L12: 0.9773042679 | M12: 0.01434294996 | N12: 0.9823013112 | O12: -0.03316829128 | P12: 0.9966307432 | Q12: -0.1599144277 | R12: 1.10623362 | S12: -0.2072529058 | T12: 1.134338619 | U12: 0.00368777858 | Z12: 7.43284 | AB12: 74.3284 | AC12: 0.9093571269
A13: 0.8358809815 | B13: 0.9237073297 | C13: 0.960559815 | D13: 0.9868335124 | E13: 1.06534847 | F13: 1.150106125 | G13: 43 | I13: 11 | J13: 0.8909470219 | K13: 0.0257575016 | L13: 0.9230748314 | M13: 0.02209216565 | N13: 0.9374980863 | O13: -0.02541907558 | P13: 0.9766040203 | Q13: -0.152165212 | R13: 0.9805901191 | S13: -0.1995036901 | T13: 0.9846093129 | U13: 0.01143699428 | Z13: 7.49618 | AB13: 74.9618 | AC13: 0.9171063426
A14: 0.9550620012 | B14: 0.957053768 | C14: 0.9799590867 | D14: 0.9871642359 | E14: 1.027656145 | F14: 1.160669667 | G14: 42 | I14: 12 | J14: 0.92742333 | K14: 0.03603065667 | L14: 0.9439593102 | M14: 0.03236532073 | N14: 0.9796397632 | O14: -0.0151459205 | P14: 0.9886738755 | Q14: -0.1418920569 | R14: 0.9958325207 | S14: -0.189230535 | T14: 1.007997314 | U14: 0.02171014935 | Z14: 7.58015 | AB14: 75.8015 | AC14: 0.9273794977
A15: 0.8980761294 | B15: 0.9072502256 | C15: 0.9278790744 | D15: 0.9515067228 | E15: 0.9845192534 | F15: 1.067445191 | G15: 41 | I15: 13 | J15: 0.8706337223 | K15: 0.03641970792 | L15: 0.9083521613 | M15: 0.03275437197 | N15: 0.9797951493 | O15: -0.01475686926 | P15: 0.9942042617 | Q15: -0.1415030057 | R15: 1.007583365 | S15: -0.1888414838 | T15: 1.104516948 | U15: 0.0220992006 | Z15: 7.58333 | AB15: 75.8333 | AC15: 0.9277685489
A16: 0.9490803183 | B16: 0.9503162834 | C16: 0.9738780163 | D16: 0.9799524968 | E16: 1.033678392 | F16: 1.199942033 | G16: 40 | I16: 14 | J16: 0.9238555622 | K16: 0.03939998728 | L16: 0.9425552521 | M16: 0.03573465133 | N16: 0.9889106894 | O16: -0.0117765899 | P16: 1.093451105 | Q16: -0.1385227263 | R16: 1.149469335 | S16: -0.1858612044 | T16: 1.166574278 | U16: 0.02507947995 | Z16: 7.60769 | AB16: 76.0769 | AC16: 0.9307488283
A17: 0.9293355796 | B17: 0.9350162497 | C17: 0.9815033737 | D17: 1.013521028 | E17: 1.027375245 | F17: 1.049422618 | G17: 39 | I17: 15 | J17: 0.8462235101 | K17: 0.0435021534 | L17: 0.9105043197 | M17: 0.03983681745 | N17: 0.959366703 | O17: -0.007674423776 | P17: 0.9731985689 | Q17: -0.1344205602 | R17: 0.995428791 | S17: -0.1817590383 | T17: 1.096956402 | U17: 0.02918164608 | Z17: 7.64122 | AB17: 76.4122 | AC17: 0.9348509944
A18: 0.9528611814 | B18: 0.9878087848 | C18: 1.019633374 | D18: 1.046702354 | E18: 1.123533642 | F18: 1.155977196 | G18: 38 | I18: 16 | J18: 0.8684481236 | K18: 0.04443563171 | L18: 0.9196133178 | M18: 0.04077029576 | N18: 0.9367177619 | O18: -0.006740945472 | P18: 0.9522196208 | Q18: -0.1334870819 | R18: 0.9559194011 | S18: -0.18082556 | T18: 0.9676725085 | U18: 0.03011512438 | Z18: 7.64885 | AB18: 76.4885 | AC18: 0.9357844727
A19: 0.8472991448 | B19: 0.8940878789 | C19: 0.9517716795 | D19: 0.9824764033 | E19: 1.011857542 | F19: 1.098406528 | G19: 37 | I19: 17 | J19: 0.8650751709 | K19: 0.05040842473 | L19: 0.8925791215 | M19: 0.04674308879 | N19: 0.9468755448 | O19: -0.0007681524435 | P19: 0.9806554414 | Q19: -0.1275142889 | R19: 0.983675243 | S19: -0.174852767 | T19: 1.135619263 | U19: 0.03608791741 | Z19: 7.69767 | AB19: 76.9767 | AC19: 0.9417572657
A20: 0.9511556138 | B20: 0.9716228334 | C20: 1.110425745 | D20: 1.126997891 | E20: 1.149842369 | F20: 1.188870343 | G20: 36 | I20: 18 | J20: 0.8599799959 | K20: 0.05489964211 | L20: 0.9015773124 | M20: 0.05123430616 | N20: 0.9176861372 | O20: 0.003723064928 | P20: 0.9442965635 | Q20: -0.1230230715 | R20: 0.9719529855 | S20: -0.1703615496 | T20: 1.087594309 | U20: 0.04057913478 | Z20: 7.73438 | AB20: 77.3438 | AC20: 0.9462484831
A21: 0.8840569058 | B21: 0.891235152 | C21: 0.9014300756 | D21: 0.9725297699 | E21: 0.9796222105 | F21: 1.119404334 | G21: 35 | I21: 19 | J21: 0.8539874538 | K21: 0.05989246643 | L21: 0.9117767686 | M21: 0.05622713048 | N21: 0.9701301979 | O21: 0.008715889252 | P21: 0.9809634 | Q21: -0.1180302472 | R21: 0.9991668016 | S21: -0.1653687253 | T21: 1.178847689 | U21: 0.04557195911 | Z21: 7.77519 | AB21: 77.7519 | AC21: 0.9512413074
A22: 0.8864994591 | B22: 0.9068018063 | C22: 0.9098580077 | D22: 0.9320825867 | E22: 0.9664277687 | F22: 0.9736962076 | G22: 34 | I22: 20 | J22: 0.9289891034 | K22: 0.06894830707 | L22: 0.9387252262 | M22: 0.06528297112 | N22: 0.963336559 | O22: 0.01777172989 | P22: 0.9949211436 | Q22: -0.1089744065 | R22: 1.115217384 | S22: -0.1563128846 | T22: 1.147563043 | U22: 0.05462779975 | Z22: 7.84921 | AB22: 78.4921 | AC22: 0.9602971481
A23: 0.8801771053 | B23: 0.88059012 | C23: 0.9461344413 | D23: 0.966500843 | E23: 0.9774120282 | F23: 1.071524217 | G23: 33 | I23: 21 | J23: 0.8481257636 | K23: 0.07390932217 | L23: 0.9325891651 | M23: 0.07024398622 | N23: 0.9596453289 | O23: 0.02273274499 | P23: 1.032887697 | Q23: -0.1040133914 | R23: 1.04564554 | S23: -0.1513518695 | T23: 1.167349373 | U23: 0.05958881485 | Z23: 7.88976 | AB23: 78.8976 | AC23: 0.9652581632
A24: 0.9004396625 | B24: 0.9479240917 | C24: 0.9489043648 | D24: 0.9732420952 | E24: 1.129648345 | F24: 1.140509771 | G24: 32 | I24: 22 | J24: 0.8489292682 | K24: 0.07851676554 | L24: 0.8890317584 | M24: 0.0748514296 | N24: 0.9032122315 | O24: 0.02734018837 | P24: 0.9859733854 | Q24: -0.09940594806 | R24: 1.129984999 | S24: -0.1467444261 | T24: 1.148018662 | U24: 0.06419625822 | Z24: 7.92742 | AB24: 79.2742 | AC24: 0.9698656065
A25: 0.8932655395 | B25: 0.9243275533 | C25: 0.9364335854 | D25: 1.019948533 | E25: 1.06147367 | F25: 1.186817815 | G25: 31 | I25: 23 | J25: 0.8561675323 | K25: 0.07865746018 | L25: 0.9058287657 | M25: 0.07499212423 | N25: 0.9257927184 | O25: 0.027480883 | P25: 0.9553592602 | Q25: -0.09926525343 | R25: 1.047007231 | S25: -0.1466037315 | T25: 1.065375436 | U25: 0.06433695285 | Z25: 7.92857 | AB25: 79.2857 | AC25: 0.9700063012
A26: 0.8962028557 | B26: 0.9321685953 | C26: 0.9748973017 | D26: 1.065335888 | E26: 1.083218815 | F26: 1.194079967 | G26: 30 | I26: 24 | J26: 0.8444804498 | K26: 0.07865746018 | L26: 0.9718163962 | M26: 0.07499212423 | N26: 1.040405409 | O26: 0.027480883 | P26: 1.058499533 | Q26: -0.09926525343 | R26: 1.084392279 | S26: -0.1466037315 | T26: 1.15987918 | U26: 0.06433695285 | Z26: 7.92857 | AB26: 79.2857 | AC26: 0.9700063012
A27: 0.8754321067 | B27: 0.9689538787 | C27: 0.9809161512 | D27: 1.004816173 | E27: 1.056872167 | F27: 1.110405666 | G27: 29 | I27: 25 | J27: 0.90083572 | K27: 0.08446019621 | L27: 0.9510550957 | M27: 0.08079486027 | N27: 0.951806773 | O27: 0.03328361904 | P27: 0.9758201121 | Q27: -0.09346251739 | R27: 0.9807726265 | S27: -0.1408009955 | T27: 1.050494055 | U27: 0.07013968889 | Z27: 7.976 | AB27: 79.76 | AC27: 0.9758090372
A28: 0.9021020131 | B28: 0.920645369 | C28: 0.9641882882 | D28: 1.004701143 | E28: 1.095750222 | F28: 1.144103721 | G28: 28 | I28: 26 | J28: 0.8575206237 | K28: 0.08543894149 | L28: 0.8879246103 | M28: 0.08177360554 | N28: 0.8971503123 | O28: 0.03426236431 | P28: 0.9663189833 | Q28: -0.09248377212 | R28: 0.9692531502 | S28: -0.1398222502 | T28: 1.121073223 | U28: 0.07111843417 | Z28: 7.984 | AB28: 79.84 | AC28: 0.9767877825
A29: 0.9204330196 | B29: 0.925667984 | C29: 0.9474427388 | D29: 0.9838545521 | E29: 1.038862136 | F29: 1.093172133 | G29: 27 | I29: 27 | J29: 0.8948215762 | K29: 0.09035591305 | L29: 0.9418220461 | M29: 0.08669057711 | N29: 0.9456111252 | O29: 0.03917933588 | P29: 0.9938571021 | Q29: -0.08756680055 | R29: 1.145025467 | S29: -0.1349052786 | T29: 1.168220742 | U29: 0.07603540573 | Z29: 8.02419 | AB29: 80.2419 | AC29: 0.981704754
A30: 0.921239189 | B30: 0.9456216802 | C30: 0.9456216802 | D30: 0.9765916486 | E30: 1.019409024 | F30: 1.193934266 | G30: 26 | I30: 28 | J30: 0.8835205187 | K30: 0.0933166175 | L30: 0.9293727783 | M30: 0.08965128156 | N30: 0.9402836384 | O30: 0.04214004033 | P30: 1.004379746 | Q30: -0.0846060961 | R30: 1.111345534 | S30: -0.1319445742 | T30: 1.147411513 | U30: 0.07899611018 | Z30: 8.04839 | AB30: 80.4839 | AC30: 0.9846654585
A31: 0.8843136556 | B31: 0.8871006932 | C31: 0.9154002212 | D31: 0.9219883219 | E31: 0.944231898 | F31: 1.016249783 | G31: 25 | I31: 29 | J31: 0.8912573196 | K31: 0.09336433134 | L31: 0.8930417972 | M31: 0.08969899539 | N31: 0.9401886722 | O31: 0.04218775416 | P31: 0.9642155626 | Q31: -0.08455838227 | R31: 1.042563906 | S31: -0.1318968604 | T31: 1.107869673 | U31: 0.07904382401 | Z31: 8.04878 | AB31: 80.4878 | AC31: 0.9847131723
A32: 0.8949041433 | B32: 0.9453139407 | C32: 0.9685594459 | D32: 0.9866947153 | E32: 0.9897333995 | F32: 1.041371419 | G32: 24 | I32: 30 | J32: 0.8850482205 | K32: 0.1033108302 | L32: 0.9056219517 | M32: 0.09964549423 | N32: 0.9532381336 | O32: 0.052134253 | P32: 1.112556178 | Q32: -0.07461188343 | R32: 1.113667512 | S32: -0.1219503615 | T32: 1.164370731 | U32: 0.08899032285 | Z32: 8.13008 | AB32: 81.3008 | AC32: 0.9946596712
A33: 0.8722707794 | B33: 0.9021901701 | C33: 0.9140937021 | D33: 0.9503668727 | E33: 0.9754988666 | F33: 1.145143809 | G33: 23 | I33: 31 | J33: 0.8850482205 | K33: 0.1139045243 | L33: 0.9056219517 | M33: 0.1102391884 | N33: 0.9532381336 | O33: 0.06272794714 | P33: 1.112556178 | Q33: -0.06401818928 | R33: 1.113667512 | S33: -0.1113566674 | T33: 1.164370731 | U33: 0.099584017 | Z33: 8.21667 | AB33: 82.1667 | AC33: 1.005253365
A34: 0.8897602785 | B34: 0.8961615814 | C34: 0.907711865 | D34: 0.9443085943 | E34: 0.9465216022 | F34: 1.098330756 | G34: 22 | K34: 0.1207630818 | M34: 0.1170977459 | O34: 0.06958650465 | Q34: -0.05715963178 | S34: -0.1044981099 | U34: 0.1064425745 | Z34: 8.27273 | AB34: 82.7273 | AC34: 1.012111923
A35: 0.8913399297 | B35: 0.9773042679 | C35: 0.9823013112 | D35: 0.9966307432 | E35: 1.10623362 | F35: 1.134338619 | G35: 21 | K35: 0.142346862 | M35: =$AC35-($L$2+$M$2) -> 0.138681526 | O35: =$AC35-($N$2+$O$2) -> 0.09117028478 | Q35: =$AC35-($P$2+$Q$2) -> -0.03557585165 | S35: =$AC35-($R$2+$S$2) -> -0.08291432974 | U35: =$AC35-($T$2+$U$2) -> 0.1280263546 | Z35: 8.44915 | AB35: 84.4915 | AC35: 1.033695703
A36: 0.8909470219 | B36: 0.9230748314 | C36: 0.9374980863 | D36: 0.9766040203 | E36: 0.9805901191 | F36: 0.9846093129 | G36: 20 | K36: 0.147531765 | M36: 0.1438664291 | O36: 0.09635518786 | Q36: -0.03039094857 | S36: -0.07772942665 | U36: 0.1332112577 | Z36: 8.49153 | AB36: 84.9153 | AC36: 1.038880606
A37: 0.92742333 | B37: 0.9439593102 | C37: 0.9796397632 | D37: 0.9886738755 | E37: 0.9958325207 | F37: 1.007997314 | G37: 19 | K37: 0.1750932319 | M37: 0.171427896 | O37: 0.1239166548 | Q37: -0.002829481677 | S37: -0.05016795976 | U37: 0.1607727246 | Z37: 8.71681 | AB37: 87.1681 | AC37: 1.066442073
A38: 0.8706337223 | B38: 0.9083521613 | C38: 0.9797951493 | D38: 0.9942042617 | E38: 1.007583365 | F38: 1.104516948 | G38: 18 | K38: 0.1886072573 | M38: 0.1849419213 | O38: 0.1374306801 | Q38: 0.01068454368 | S38: -0.03665393441 | U38: 0.17428675 | Z38: 8.82727 | AB38: 88.2727 | AC38: 1.079956098
A39: 0.9238555622 | B39: 0.9425552521 | C39: 0.9889106894 | D39: 1.093451105 | E39: 1.149469335 | F39: 1.166574278 | G39: 17 | K39: 0.1965130722 | M39: 0.1928477363 | O39: 0.1453364951 | Q39: 0.01859035862 | S39: -0.02874811946 | U39: 0.1821925649 | Z39: 8.89189 | AB39: 88.9189 | AC39: 1.087861913
A40: 0.8462235101 | B40: 0.9105043197 | C40: 0.959366703 | D40: 0.9731985689 | E40: 0.995428791 | F40: 1.096956402 | G40: 16 | K40: 0.2052911939 | M40: 0.2016258579 | O40: 0.1541146167 | Q40: 0.02736848029 | S40: -0.0199699978 | U40: 0.1909706866 | Z40: 8.96364 | AB40: 89.6364 | AC40: 1.096640035
A41: 0.8684481236 | B41: 0.9196133178 | C41: 0.9367177619 | D41: 0.9522196208 | E41: 0.9559194011 | F41: 0.9676725085 | G41: 15 | K41: 0.2075349674 | M41: 0.2038696315 | O41: 0.1563583903 | Q41: 0.02961225383 | S41: -0.01772622426 | U41: 0.1932144601 | Z41: 8.98198 | AB41: 89.8198 | AC41: 1.098883808
A42: 0.8650751709 | B42: 0.8925791215 | C42: 0.9468755448 | D42: 0.9806554414 | E42: 0.983675243 | F42: 1.135619263 | G42: 14 | K42: 0.2141488386 | M42: 0.2104835027 | O42: 0.1629722614 | Q42: 0.03622612501 | S42: -0.01111235307 | U42: 0.1998283313 | Z42: 9.03604 | AB42: 90.3604 | AC42: 1.10549768
A43: 0.8599799959 | B43: 0.9015773124 | C43: 0.9176861372 | D43: 0.9442965635 | E43: 0.9719529855 | F43: 1.087594309 | G43: 13 | K43: 0.2141488386 | M43: 0.2104835027 | O43: 0.1629722614 | Q43: 0.03622612501 | S43: -0.01111235307 | U43: 0.1998283313 | Z43: 9.03604 | AB43: 90.3604 | AC43: 1.10549768
A44: 0.8539874538 | B44: 0.9117767686 | C44: 0.9701301979 | D44: 0.9809634 | E44: 0.9991668016 | F44: 1.178847689 | G44: 12 | K44: 0.2357937903 | M44: 0.2321284544 | O44: 0.1846172132 | Q44: 0.05787107672 | S44: 0.01053259864 | U44: 0.221473283 | Z44: 9.21296 | AB44: 92.1296 | AC44: 1.127142631
A45: 0.9289891034 | B45: 0.9387252262 | C45: 0.963336559 | D45: 0.9949211436 | E45: 1.115217384 | F45: 1.147563043 | G45: 11 | K45: 0.2509019471 | M45: 0.2472366111 | O45: 0.1997253699 | Q45: 0.07297923345 | S45: 0.02564075536 | U45: 0.2365814397 | Z45: 9.33645 | AB45: 93.3645 | AC45: 1.142250788
A46: 0.8481257636 | B46: 0.9325891651 | C46: 0.9596453289 | D46: 1.032887697 | E46: 1.04564554 | F46: 1.167349373 | G46: 10 | K46: 0.2520446322 | M46: 0.2483792962 | O46: 0.200868055 | Q46: 0.07412191855 | S46: 0.02678344047 | U46: 0.2377241248 | Z46: 9.34579 | AB46: 93.4579 | AC46: 1.143393473
A47: 0.8489292682 | B47: 0.8890317584 | C47: 0.9032122315 | D47: 0.9859733854 | E47: 1.129984999 | F47: 1.148018662 | G47: 9 | K47: 0.2531885407 | M47: 0.2495232047 | O47: 0.2020119635 | Q47: 0.07526582709 | S47: 0.027927349 | U47: 0.2388680334 | Z47: 9.35514 | AB47: 93.5514 | AC47: 1.144537382
A48: 0.8561675323 | B48: 0.9058287657 | C48: 0.9257927184 | D48: 0.9553592602 | E48: 1.047007231 | F48: 1.065375436 | G48: 8 | K48: 0.2662939399 | M48: 0.262628604 | O48: 0.2151173627 | Q48: 0.08837122629 | S48: 0.04103274821 | U48: 0.2519734326 | Z48: 9.46226 | AB48: 94.6226 | AC48: 1.157642781
A49: 0.8444804498 | B49: 0.9718163962 | C49: 1.040405409 | D49: 1.058499533 | E49: 1.084392279 | F49: 1.15987918 | G49: 7 | K49: 0.2703288173 | M49: 0.2666634813 | O49: 0.2191522401 | Q49: 0.09240610368 | S49: 0.0450676256 | U49: 0.25600831 | Z49: 9.49524 | AB49: 94.9524 | AC49: 1.161677658
A50: 0.90083572 | B50: 0.9510550957 | C50: 0.951806773 | D50: 0.9758201121 | E50: 0.9807726265 | F50: 1.050494055 | G50: 6 | K50: 0.2933207672 | M50: 0.2896554312 | O50: 0.24214419 | Q50: 0.1153980536 | S50: 0.06805957549 | U50: 0.2790002599 | Z50: 9.68317 | AB50: 96.8317 | AC50: 1.184669608
A51: 0.8575206237 | B51: 0.8879246103 | C51: 0.8971503123 | D51: 0.9663189833 | E51: 0.9692531502 | F51: 1.121073223 | G51: 5 | K51: 0.2984983297 | M51: 0.2948329937 | O51: 0.2473217525 | Q51: 0.1205756161 | S51: 0.07323713799 | U51: 0.2841778224 | Z51: 9.72549 | AB51: 97.2549 | AC51: 1.189847171
A52: 0.8948215762 | B52: 0.9418220461 | C52: 0.9456111252 | D52: 0.9938571021 | E52: 1.145025467 | F52: 1.168220742 | G52: 4
A53: 0.8835205187 | B53: 0.9293727783 | C53: 0.9402836384 | D53: 1.004379746 | E53: 1.111345534 | F53: 1.147411513 | G53: 3
A54: 0.8912573196 | B54: 0.8930417972 | C54: 0.9401886722 | D54: 0.9642155626 | E54: 1.042563906 | F54: 1.107869673 | G54: 2
A55: 0.8850482205 | B55: 0.9056219517 | C55: 0.9532381336 | D55: 1.112556178 | E55: 1.113667512 | F55: 1.164370731 | G55: 1
